[Event "Late-Titled-Tuesday-Blitz-September-19-2023"]
[Site "Chess.com"]
[Date "2023.09.19"]
[Round "9"]
[White "Djager97"]
[Black "azikom"]
[Result "1-0"]
[WhiteElo "2560"]
[BlackElo "2616"]
[TimeControl "180+1"]
[EndTime "15:44:34 PDT"]
[Termination "Djager97 won by checkmate"]

1. e4 {[%clk 0:03:00.9]} 1... c5 {[%clk 0:02:59]} 2. Nf3 {[%clk 0:02:56.9]} 2...
d6 {[%clk 0:02:59.2]} 3. d4 {[%clk 0:02:56.4]} 3... cxd4 {[%clk 0:02:59.3]} 4.
Nxd4 {[%clk 0:02:57.3]} 4... Nf6 {[%clk 0:02:59.6]} 5. Nc3 {[%clk 0:02:57.9]}
5... a6 {[%clk 0:03:00.1]} 6. Bg5 {[%clk 0:02:57.5]} 6... Nbd7 {[%clk
0:02:58.6]} 7. Qe2 {[%clk 0:02:57.3]} 7... e6 {[%clk 0:02:56]} 8. O-O-O {[%clk
0:02:54.6]} 8... Be7 {[%clk 0:02:51.4]} 9. h4 {[%clk 0:02:39]} 9... Qc7 {[%clk
0:02:49.8]} 10. g4 {[%clk 0:02:35.4]} 10... b5 {[%clk 0:02:48.2]} 11. a3 {[%clk
0:02:32.2]} 11... Bb7 {[%clk 0:02:47.3]} 12. Bg2 {[%clk 0:02:32.8]} 12... Qc4
{[%clk 0:02:37.5]} 13. Qd2 {[%clk 0:01:54.2]} 13... b4 {[%clk 0:02:08.6]} 14.
axb4 {[%clk 0:01:51.6]} 14... Qxb4 {[%clk 0:02:08.3]} 15. Bxf6 {[%clk
0:01:39.5]} 15... Nxf6 {[%clk 0:01:58.6]} 16. g5 {[%clk 0:01:20.2]} 16... Nd7
{[%clk 0:01:58.1]} 17. f4 {[%clk 0:01:12.8]} 17... Nc5 {[%clk 0:01:51.6]} 18.
Rh3 {[%clk 0:00:28.5]} 18... Rb8 {[%clk 0:01:49.5]} 19. Nb3 {[%clk 0:00:18.3]}
19... Nxb3+ {[%clk 0:01:46.8]} 20. cxb3 {[%clk 0:00:19.2]} 20... O-O {[%clk
0:01:41.6]} 21. f5 {[%clk 0:00:11.8]} 21... Rfc8 {[%clk 0:01:39.4]} 22. f6
{[%clk 0:00:10.6]} 22... gxf6 {[%clk 0:01:34.8]} 23. Kb1 {[%clk 0:00:07.8]}
23... fxg5 {[%clk 0:01:00.3]} 24. hxg5 {[%clk 0:00:07.3]} 24... Rc5 {[%clk
0:00:53.4]} 25. Rdh1 {[%clk 0:00:04.3]} 25... Bxg5 {[%clk 0:00:50.1]} 26. Rg3
{[%clk 0:00:04.3]} 26... f6 {[%clk 0:00:45.5]} 27. Qxd6 {[%clk 0:00:03.3]} 27...
Re8 {[%clk 0:00:14.9]} 28. Qd7 {[%clk 0:00:03.4]} 28... h6 {[%clk 0:00:06.9]}
29. Qxe8+ {[%clk 0:00:03.3]} 29... Kg7 {[%clk 0:00:03.6]} 30. Qe7+ {[%clk
0:00:03.7]} 30... Kg6 {[%clk 0:00:03.3]} 31. Qxe6 {[%clk 0:00:02.6]} 31... Re5
{[%clk 0:00:02.7]} 32. Qg8# {[%clk 0:00:02.6]} 1-0

[Event "Late-Titled-Tuesday-Blitz-September-19-2023"]
[Site "Chess.com"]
[Date "2023.09.19"]
[Round "9"]
[White "ozates"]
[Black "JackRodgers"]
[Result "0-1"]
[WhiteElo "2590"]
[BlackElo "2533"]
[TimeControl "180+1"]
[EndTime "15:44:34 PDT"]
[Termination "JackRodgers won by resignation"]

1. e4 {[%clk 0:03:00.9]} 1... c5 {[%clk 0:02:59.5]} 2. Nf3 {[%clk 0:03:01.2]}
2... g6 {[%clk 0:02:59.7]} 3. c3 {[%clk 0:03:01]} 3... Bg7 {[%clk 0:02:59.7]} 4.
d4 {[%clk 0:03:01]} 4... cxd4 {[%clk 0:03:00.6]} 5. cxd4 {[%clk 0:03:01.4]} 5...
d5 {[%clk 0:03:01.2]} 6. e5 {[%clk 0:03:02.1]} 6... Bg4 {[%clk 0:03:01.4]} 7.
Nc3 {[%clk 0:02:56.5]} 7... Nc6 {[%clk 0:02:58.8]} 8. Bb5 {[%clk 0:02:56.6]}
8... Rc8 {[%clk 0:02:55.9]} 9. h3 {[%clk 0:02:55.8]} 9... Bxf3 {[%clk
0:02:55.9]} 10. Qxf3 {[%clk 0:02:56.7]} 10... e6 {[%clk 0:02:54]} 11. O-O {[%clk
0:02:46.7]} 11... Ne7 {[%clk 0:02:50.9]} 12. Bg5 {[%clk 0:02:46.4]} 12... O-O
{[%clk 0:02:50.3]} 13. Rad1 {[%clk 0:02:45]} 13... h6 {[%clk 0:02:48.4]} 14.
Bxc6 {[%clk 0:02:19.6]} 14... Rxc6 {[%clk 0:02:38]} 15. Be3 {[%clk 0:02:06.3]}
15... Nf5 {[%clk 0:02:32.2]} 16. g4 {[%clk 0:02:06]} 16... Nxe3 {[%clk
0:02:31.2]} 17. Qxe3 {[%clk 0:02:05.9]} 17... Qa5 {[%clk 0:02:22.8]} 18. f4
{[%clk 0:02:05.9]} 18... b5 {[%clk 0:02:19.6]} 19. f5 {[%clk 0:02:03]} 19... b4
{[%clk 0:02:18.2]} 20. Ne2 {[%clk 0:01:51.2]} 20... exf5 {[%clk 0:02:15.8]} 21.
gxf5 {[%clk 0:01:51]} 21... gxf5 {[%clk 0:02:16]} 22. Rxf5 {[%clk 0:01:40.3]}
22... Qxa2 {[%clk 0:01:56.1]} 23. Kh1 {[%clk 0:01:26.8]} 23... Qxb2 {[%clk
0:01:54.1]} 24. Rg1 {[%clk 0:01:26.4]} 24... Rg6 {[%clk 0:01:53.3]} 25. Rff1
{[%clk 0:01:16.7]} 25... Qc2 {[%clk 0:01:31.4]} 26. Nf4 {[%clk 0:01:10.8]} 26...
Rxg1+ {[%clk 0:01:26.5]} 27. Rxg1 {[%clk 0:01:02.7]} 27... Qe4+ {[%clk
0:01:24.9]} 28. Qxe4 {[%clk 0:01:03]} 28... dxe4 {[%clk 0:01:25.8]} 29. Nh5
{[%clk 0:01:03.6]} 29... a5 {[%clk 0:01:10.3]} 30. Nxg7 {[%clk 0:01:00.4]} 30...
Kh7 {[%clk 0:01:05.6]} 31. d5 {[%clk 0:00:55.9]} 31... a4 {[%clk 0:01:02.9]} 32.
d6 {[%clk 0:00:55.9]} 32... b3 {[%clk 0:00:57.6]} 33. e6 {[%clk 0:00:26]} 33...
fxe6 {[%clk 0:00:46.3]} 34. Nxe6 {[%clk 0:00:26.9]} 34... Rb8 {[%clk 0:00:41.4]}
35. d7 {[%clk 0:00:09.7]} 35... a3 {[%clk 0:00:36.5]} 36. Nc5 {[%clk 0:00:02.5]}
36... b2 {[%clk 0:00:32.2]} 37. Kh2 {[%clk 0:00:02.3]} 37... a2 {[%clk
0:00:28.5]} 38. Nxe4 {[%clk 0:00:02.4]} 38... b1=Q {[%clk 0:00:21]} 39. Nf6+
{[%clk 0:00:02.7]} 39... Kh8 {[%clk 0:00:20.6]} 40. Rg7 {[%clk 0:00:02.5]} 0-1

[Event "Late-Titled-Tuesday-Blitz-September-19-2023"]
[Site "Chess.com"]
[Date "2023.09.19"]
[Round "9"]
[White "Nikachu"]
[Black "Nekoo04"]
[Result "0-1"]
[WhiteElo "2194"]
[BlackElo "2343"]
[TimeControl "180+1"]
[EndTime "15:44:38 PDT"]
[Termination "Nekoo04 won on time"]

1. e4 {[%clk 0:03:00.4]} 1... c5 {[%clk 0:02:47.4]} 2. Nf3 {[%clk 0:02:59.8]}
2... d6 {[%clk 0:02:47.1]} 3. d4 {[%clk 0:03:00]} 3... cxd4 {[%clk 0:02:48]} 4.
Nxd4 {[%clk 0:03:00.5]} 4... Nf6 {[%clk 0:02:41.4]} 5. Nc3 {[%clk 0:02:59.1]}
5... g6 {[%clk 0:02:41.9]} 6. Be3 {[%clk 0:02:58.3]} 6... Bg7 {[%clk 0:02:36.7]}
7. f3 {[%clk 0:02:58]} 7... Nc6 {[%clk 0:02:36.2]} 8. Qd2 {[%clk 0:02:57.7]}
8... O-O {[%clk 0:02:35.8]} 9. O-O-O {[%clk 0:02:57.6]} 9... d5 {[%clk
0:02:36.3]} 10. exd5 {[%clk 0:02:54.3]} 10... Nxd5 {[%clk 0:02:37.2]} 11. Nxc6
{[%clk 0:02:45.1]} 11... bxc6 {[%clk 0:02:38.1]} 12. Bd4 {[%clk 0:02:38.2]}
12... e5 {[%clk 0:02:37.6]} 13. Bc5 {[%clk 0:02:37.6]} 13... Be6 {[%clk
0:02:37.7]} 14. h4 {[%clk 0:02:12.8]} 14... Rb8 {[%clk 0:02:15.3]} 15. Ne4
{[%clk 0:02:04.3]} 15... Re8 {[%clk 0:02:04.1]} 16. h5 {[%clk 0:02:00.7]} 16...
f5 {[%clk 0:01:55.4]} 17. hxg6 {[%clk 0:01:42.9]} 17... fxe4 {[%clk 0:01:49.4]}
18. fxe4 {[%clk 0:01:40.7]} 18... Nf4 {[%clk 0:01:43]} 19. Qf2 {[%clk
0:01:17.3]} 19... Qg5 {[%clk 0:01:27.8]} 20. Kb1 {[%clk 0:01:11.7]} 20... hxg6
{[%clk 0:01:22.5]} 21. g3 {[%clk 0:01:08.5]} 21... Nh5 {[%clk 0:01:07.3]} 22.
Bh3 {[%clk 0:00:51.9]} 22... Qxg3 {[%clk 0:00:45.5]} 23. Bxe6+ {[%clk
0:00:36.8]} 23... Rxe6 {[%clk 0:00:46.4]} 24. Qe2 {[%clk 0:00:37.2]} 24... Qc3
{[%clk 0:00:38.3]} 25. Rd8+ {[%clk 0:00:25]} 25... Kf7 {[%clk 0:00:27]} 26. Rf1+
{[%clk 0:00:16]} 26... Nf4 {[%clk 0:00:26.4]} 27. Rxb8 {[%clk 0:00:14.6]} 27...
Qxc5 {[%clk 0:00:25.8]} 28. Qg4 {[%clk 0:00:12]} 28... Re7 {[%clk 0:00:22.1]}
29. Qc8 {[%clk 0:00:10.3]} 29... Qe3 {[%clk 0:00:11]} 30. Qg8+ {[%clk
0:00:09.7]} 30... Kf6 {[%clk 0:00:11.2]} 31. Rd8 {[%clk 0:00:06.7]} 31... Qxe4
{[%clk 0:00:07.3]} 32. Rd6+ {[%clk 0:00:06.3]} 32... Kf5 {[%clk 0:00:04.9]} 33.
Qb3 {[%clk 0:00:02.7]} 33... Qg2 {[%clk 0:00:02.1]} 34. Rfd1 {[%clk 0:00:01.3]}
34... Bf6 {[%clk 0:00:01.6]} 0-1

[Event "Late-Titled-Tuesday-Blitz-September-19-2023"]
[Site "Chess.com"]
[Date "2023.09.19"]
[Round "9"]
[White "SCIM"]
[Black "Goryachkina"]
[Result "1-0"]
[WhiteElo "2583"]
[BlackElo "2675"]
[TimeControl "180+1"]
[EndTime "15:44:39 PDT"]
[Termination "SCIM won on time"]

1. e4 {[%clk 0:03:00.9]} 1... c6 {[%clk 0:02:59.8]} 2. d4 {[%clk 0:02:59.1]}
2... d5 {[%clk 0:02:59.7]} 3. e5 {[%clk 0:02:59.4]} 3... Bf5 {[%clk 0:02:59.6]}
4. Nc3 {[%clk 0:02:59.3]} 4... a6 {[%clk 0:02:51.5]} 5. g4 {[%clk 0:02:57.9]}
5... Bd7 {[%clk 0:02:50.2]} 6. Be3 {[%clk 0:02:52.8]} 6... e6 {[%clk 0:02:44.1]}
7. Qd2 {[%clk 0:02:38.6]} 7... Bb4 {[%clk 0:02:33.5]} 8. a3 {[%clk 0:02:36.1]}
8... Ba5 {[%clk 0:02:33.5]} 9. b4 {[%clk 0:02:32.6]} 9... Bc7 {[%clk 0:02:33.6]}
10. Nge2 {[%clk 0:02:26.1]} 10... a5 {[%clk 0:02:32.8]} 11. Rb1 {[%clk
0:02:26.3]} 11... axb4 {[%clk 0:02:29]} 12. axb4 {[%clk 0:02:27.2]} 12... Ne7
{[%clk 0:02:26.9]} 13. Nf4 {[%clk 0:02:23.5]} 13... b6 {[%clk 0:02:10.9]} 14.
Bd3 {[%clk 0:02:12.2]} 14... Ng6 {[%clk 0:01:19.1]} 15. Nh5 {[%clk 0:02:07]}
15... Rg8 {[%clk 0:01:16.5]} 16. Bg5 {[%clk 0:01:59]} 16... Qc8 {[%clk
0:01:09.2]} 17. f4 {[%clk 0:01:52.6]} 17... c5 {[%clk 0:01:08.2]} 18. bxc5
{[%clk 0:01:44.6]} 18... bxc5 {[%clk 0:01:08]} 19. f5 {[%clk 0:01:29.6]} 19...
cxd4 {[%clk 0:01:04.7]} 20. fxg6 {[%clk 0:01:09.6]} 20... hxg6 {[%clk
0:01:04.2]} 21. Nxg7+ {[%clk 0:00:49.4]} 21... Rxg7 {[%clk 0:01:01.1]} 22. Nb5
{[%clk 0:00:49.1]} 22... Bxb5 {[%clk 0:00:35.3]} 23. Bxb5+ {[%clk 0:00:47]}
23... Kf8 {[%clk 0:00:35.4]} 24. O-O {[%clk 0:00:33.3]} 24... Bxe5 {[%clk
0:00:33.8]} 25. Rbe1 {[%clk 0:00:29.4]} 25... Bd6 {[%clk 0:00:29.9]} 26. Bh6
{[%clk 0:00:21]} 26... Kg8 {[%clk 0:00:26.2]} 27. Bxg7 {[%clk 0:00:20.3]} 27...
Kxg7 {[%clk 0:00:25.8]} 28. Qxd4+ {[%clk 0:00:18.4]} 28... Kg8 {[%clk
0:00:26.1]} 29. Qf6 {[%clk 0:00:15.7]} 29... Ra7 {[%clk 0:00:22.2]} 30. Bd3
{[%clk 0:00:15]} 30... Qf8 {[%clk 0:00:10.7]} 31. Bxg6 {[%clk 0:00:12.4]} 31...
Qg7 {[%clk 0:00:01.5]} 32. Qd8+ {[%clk 0:00:10.9]} 32... Qf8 {[%clk 0:00:01.9]}
33. Qf6 {[%clk 0:00:10.2]} 33... Qg7 {[%clk 0:00:02.2]} 34. Qd8+ {[%clk
0:00:06.7]} 1-0

[Event "Late-Titled-Tuesday-Blitz-September-19-2023"]
[Site "Chess.com"]
[Date "2023.09.19"]
[Round "9"]
[White "DTChess"]
[Black "Schwindle"]
[Result "1-0"]
[WhiteElo "2532"]
[BlackElo "2415"]
[TimeControl "180+1"]
[EndTime "15:44:40 PDT"]
[Termination "DTChess won on time"]

1. e4 {[%clk 0:03:00.9]} 1... e6 {[%clk 0:03:00.2]} 2. d4 {[%clk 0:03:00.5]}
2... d5 {[%clk 0:03:00.3]} 3. Nc3 {[%clk 0:03:00.5]} 3... Nf6 {[%clk 0:03:00.7]}
4. e5 {[%clk 0:03:00.6]} 4... Nfd7 {[%clk 0:03:01.2]} 5. f4 {[%clk 0:03:01]}
5... c5 {[%clk 0:03:01.4]} 6. Nf3 {[%clk 0:03:01.5]} 6... Nc6 {[%clk 0:03:01.8]}
7. Be3 {[%clk 0:03:01.4]} 7... Be7 {[%clk 0:03:01.9]} 8. Qd2 {[%clk 0:03:01.5]}
8... O-O {[%clk 0:03:01.6]} 9. Be2 {[%clk 0:03:01.4]} 9... f6 {[%clk 0:02:58.4]}
10. exf6 {[%clk 0:02:56.2]} 10... Nxf6 {[%clk 0:02:57.2]} 11. dxc5 {[%clk
0:02:49.3]} 11... Qa5 {[%clk 0:02:49.1]} 12. O-O-O {[%clk 0:02:43.2]} 12... Bxc5
{[%clk 0:02:39.6]} 13. Bxc5 {[%clk 0:02:42.6]} 13... Qxc5 {[%clk 0:02:39.6]} 14.
Bd3 {[%clk 0:02:40.8]} 14... Bd7 {[%clk 0:02:28.9]} 15. Rhe1 {[%clk 0:02:39.7]}
15... Rac8 {[%clk 0:02:23.3]} 16. g3 {[%clk 0:02:36.3]} 16... Nb4 {[%clk
0:02:04.1]} 17. a3 {[%clk 0:02:25.1]} 17... Nxd3+ {[%clk 0:01:50.6]} 18. Qxd3
{[%clk 0:02:25.2]} 18... b5 {[%clk 0:01:29.5]} 19. Ne5 {[%clk 0:02:21.2]} 19...
Be8 {[%clk 0:01:26.5]} 20. Qd4 {[%clk 0:02:08.1]} 20... Qc7 {[%clk 0:01:19]} 21.
Nf3 {[%clk 0:01:56]} 21... Ne4 {[%clk 0:01:09.3]} 22. Rd3 {[%clk 0:01:36.1]}
22... a5 {[%clk 0:01:03.9]} 23. Kb1 {[%clk 0:01:28.6]} 23... Bh5 {[%clk
0:01:00]} 24. Ne5 {[%clk 0:01:21.7]} 24... b4 {[%clk 0:00:51.9]} 25. Nxe4 {[%clk
0:00:59.5]} 25... Qxc2+ {[%clk 0:00:48.5]} 26. Ka2 {[%clk 0:00:55.9]} 26... dxe4
{[%clk 0:00:45.8]} 27. Qxe4 {[%clk 0:00:40.6]} 27... Be8 {[%clk 0:00:16.2]} 28.
Rde3 {[%clk 0:00:31.1]} 28... Qc5 {[%clk 0:00:12.6]} 29. Rd1 {[%clk 0:00:23.6]}
29... Ba4 {[%clk 0:00:09.3]} 30. b3 {[%clk 0:00:19]} 30... Bb5 {[%clk
0:00:07.2]} 31. a4 {[%clk 0:00:18.5]} 31... Bc6 {[%clk 0:00:05.3]} 32. Qb1
{[%clk 0:00:15.1]} 32... Bd5 {[%clk 0:00:05.4]} 33. Re2 {[%clk 0:00:12.9]} 33...
Qe7 {[%clk 0:00:04]} 34. Red2 {[%clk 0:00:12.7]} 34... Qe8 {[%clk 0:00:03.9]}
35. Kb2 {[%clk 0:00:11.4]} 35... Rc3 {[%clk 0:00:03.4]} 36. Rd3 {[%clk
0:00:09.7]} 36... Qc8 {[%clk 0:00:02.1]} 37. Rxc3 {[%clk 0:00:09]} 37... Qxc3+
{[%clk 0:00:03]} 38. Ka2 {[%clk 0:00:09.6]} 38... Rc8 {[%clk 0:00:02.3]} 39. Qb2
{[%clk 0:00:09.8]} 39... Qxb2+ {[%clk 0:00:01.7]} 40. Kxb2 {[%clk 0:00:10.7]}
40... g6 {[%clk 0:00:01.1]} 41. Rc1 {[%clk 0:00:10.6]} 41... Kg7 {[%clk
0:00:02]} 42. Rxc8 {[%clk 0:00:10.6]} 1-0

[Event "Late-Titled-Tuesday-Blitz-September-19-2023"]
[Site "Chess.com"]
[Date "2023.09.19"]
[Round "9"]
[White "rikchessmx"]
[Black "santosalberto1987"]
[Result "0-1"]
[WhiteElo "2344"]
[BlackElo "2501"]
[TimeControl "180+1"]
[EndTime "15:44:44 PDT"]
[Termination "santosalberto1987 won by checkmate"]

1. e4 {[%clk 0:02:57.4]} 1... e6 {[%clk 0:02:19.7]} 2. d4 {[%clk 0:02:56.9]}
2... d5 {[%clk 0:02:18.9]} 3. Nc3 {[%clk 0:02:57.4]} 3... Nf6 {[%clk 0:02:19]}
4. Bg5 {[%clk 0:02:56.7]} 4... Bb4 {[%clk 0:02:18.7]} 5. e5 {[%clk 0:02:56.6]}
5... h6 {[%clk 0:02:18.8]} 6. Bd2 {[%clk 0:02:57.2]} 6... Bxc3 {[%clk 0:02:19]}
7. bxc3 {[%clk 0:02:58.1]} 7... Ne4 {[%clk 0:02:18.4]} 8. Qg4 {[%clk 0:02:58.4]}
8... Kf8 {[%clk 0:02:18.9]} 9. Bd3 {[%clk 0:02:58.5]} 9... Nxd2 {[%clk
0:02:19.5]} 10. Kxd2 {[%clk 0:02:59.4]} 10... c5 {[%clk 0:02:20]} 11. h4 {[%clk
0:02:59.2]} 11... Nc6 {[%clk 0:02:20.5]} 12. Rh3 {[%clk 0:02:59.1]} 12... c4
{[%clk 0:02:20.9]} 13. Rg3 {[%clk 0:02:37.5]} 13... cxd3 {[%clk 0:02:20.7]} 14.
Qxg7+ {[%clk 0:02:37]} 14... Ke7 {[%clk 0:02:21.4]} 15. Qf6+ {[%clk 0:02:33.4]}
15... Kd7 {[%clk 0:02:21.6]} 16. Qxf7+ {[%clk 0:02:33.6]} 16... Qe7 {[%clk
0:02:21.7]} 17. Qh5 {[%clk 0:02:31.9]} 17... dxc2 {[%clk 0:02:17.4]} 18. Ne2
{[%clk 0:02:23.6]} 18... Rf8 {[%clk 0:02:04.9]} 19. f4 {[%clk 0:02:20.8]} 19...
Qh7 {[%clk 0:01:59.5]} 20. Rg6 {[%clk 0:02:12.6]} 20... Ne7 {[%clk 0:01:59]} 21.
Rxh6 {[%clk 0:02:07.1]} 21... Qe4 {[%clk 0:01:59.2]} 22. Rf6 {[%clk 0:01:39.1]}
22... Rg8 {[%clk 0:01:10.4]} 23. g4 {[%clk 0:01:31]} 23... Qf3 {[%clk
0:01:10.6]} 24. Qf7 {[%clk 0:01:29.7]} 24... Kd8 {[%clk 0:00:42.2]} 25. g5
{[%clk 0:01:23.5]} 25... Bd7 {[%clk 0:00:41.8]} 26. h5 {[%clk 0:01:19.2]} 26...
Bb5 {[%clk 0:00:39.3]} 27. c4 {[%clk 0:00:42.3]} 27... Bxc4 {[%clk 0:00:37.6]}
28. Nc1 {[%clk 0:00:42.1]} 28... Qd1+ {[%clk 0:00:35.9]} 29. Kc3 {[%clk
0:00:41.3]} 29... Rc8 {[%clk 0:00:34.9]} 30. Rxe6 {[%clk 0:00:35.9]} 30... Qe1+
{[%clk 0:00:33.5]} 31. Kb2 {[%clk 0:00:27.6]} 31... Re8 {[%clk 0:00:32]} 32.
Rd6+ {[%clk 0:00:26.4]} 32... Kc7 {[%clk 0:00:32.2]} 33. Nb3 {[%clk 0:00:20.2]}
33... Qe2 {[%clk 0:00:28.7]} 34. Rc1 {[%clk 0:00:17]} 34... Bxb3 {[%clk
0:00:27.8]} 35. axb3 {[%clk 0:00:17.1]} 35... Kb8 {[%clk 0:00:27.5]} 36. Rd7
{[%clk 0:00:17.4]} 36... Qd2 {[%clk 0:00:18.7]} 37. Rxe7 {[%clk 0:00:15.3]}
37... Qxd4+ {[%clk 0:00:18.7]} 38. Ka2 {[%clk 0:00:15.2]} 38... Rxe7 {[%clk
0:00:17.2]} 39. Qxe7 {[%clk 0:00:15]} 39... Qxf4 {[%clk 0:00:15.7]} 40. Qd6+
{[%clk 0:00:14.5]} 40... Ka8 {[%clk 0:00:15.9]} 41. Qd7 {[%clk 0:00:14.5]} 41...
Kb8 {[%clk 0:00:09.6]} 42. e6 {[%clk 0:00:14.3]} 42... Qxc1 {[%clk 0:00:08.6]}
43. e7 {[%clk 0:00:12.8]} 43... Qb1+ {[%clk 0:00:08.6]} 44. Ka3 {[%clk
0:00:13.7]} 44... c1=Q+ {[%clk 0:00:08.9]} 45. Kb4 {[%clk 0:00:14.6]} 45... Qd2+
{[%clk 0:00:08.6]} 46. Kb5 {[%clk 0:00:12.8]} 46... Qxb3# {[%clk 0:00:08.5]} 0-1

[Event "Late-Titled-Tuesday-Blitz-September-19-2023"]
[Site "Chess.com"]
[Date "2023.09.19"]
[Round "9"]
[White "Hirna2005"]
[Black "Cipy77"]
[Result "1/2-1/2"]
[WhiteElo "2385"]
[BlackElo "2493"]
[TimeControl "180+1"]
[EndTime "15:44:48 PDT"]
[Termination "Game drawn by repetition"]

1. e4 {[%clk 0:03:00.9]} 1... c5 {[%clk 0:02:52.9]} 2. c3 {[%clk 0:03:00.8]}
2... Nf6 {[%clk 0:02:51.7]} 3. e5 {[%clk 0:02:59.6]} 3... Nd5 {[%clk 0:02:51.9]}
4. Nf3 {[%clk 0:03:00.3]} 4... e6 {[%clk 0:02:51.5]} 5. d4 {[%clk 0:02:59.8]}
5... Nc6 {[%clk 0:02:49.8]} 6. a3 {[%clk 0:02:56.9]} 6... cxd4 {[%clk
0:02:48.7]} 7. cxd4 {[%clk 0:02:56.7]} 7... d6 {[%clk 0:02:47.9]} 8. Bd3 {[%clk
0:02:56.9]} 8... dxe5 {[%clk 0:02:47.6]} 9. dxe5 {[%clk 0:02:57.2]} 9... Be7
{[%clk 0:02:39.8]} 10. O-O {[%clk 0:02:56.8]} 10... O-O {[%clk 0:02:39.5]} 11.
Qe2 {[%clk 0:02:55.3]} 11... b6 {[%clk 0:02:37.9]} 12. Bd2 {[%clk 0:02:49.4]}
12... Qc7 {[%clk 0:02:23.8]} 13. Nc3 {[%clk 0:02:47.4]} 13... Rd8 {[%clk
0:02:21]} 14. Rac1 {[%clk 0:02:40.3]} 14... Bd7 {[%clk 0:02:17.9]} 15. Nxd5
{[%clk 0:02:38]} 15... exd5 {[%clk 0:02:18.6]} 16. Rfe1 {[%clk 0:02:30.5]} 16...
Qb7 {[%clk 0:02:11.3]} 17. Bg5 {[%clk 0:02:19.7]} 17... Be6 {[%clk 0:02:07.1]}
18. Bb1 {[%clk 0:02:14.2]} 18... Nd4 {[%clk 0:01:55.7]} 19. Nxd4 {[%clk
0:02:08.4]} 19... Bxg5 {[%clk 0:01:55.3]} 20. Rc3 {[%clk 0:01:58.5]} 20... g6
{[%clk 0:01:45]} 21. Nxe6 {[%clk 0:01:40.9]} 21... fxe6 {[%clk 0:01:45.9]} 22.
Qg4 {[%clk 0:01:40.5]} 22... Qe7 {[%clk 0:01:46.4]} 23. f4 {[%clk 0:01:37.9]}
23... Bh6 {[%clk 0:01:44.4]} 24. Rc6 {[%clk 0:01:37.1]} 24... Re8 {[%clk
0:01:39.1]} 25. Rec1 {[%clk 0:01:33.7]} 25... Rad8 {[%clk 0:01:34.7]} 26. h4
{[%clk 0:01:20.1]} 26... d4 {[%clk 0:01:11.6]} 27. Ba2 {[%clk 0:01:16.1]} 27...
Kh8 {[%clk 0:01:04.2]} 28. Rxe6 {[%clk 0:01:13.7]} 28... Qf8 {[%clk 0:01:03.7]}
29. Rxe8 {[%clk 0:01:10.2]} 29... Rxe8 {[%clk 0:01:00.6]} 30. g3 {[%clk
0:01:01.5]} 30... Rxe5 {[%clk 0:00:57.9]} 31. fxe5 {[%clk 0:00:55.6]} 31... Bxc1
{[%clk 0:00:57.7]} 32. Qxd4 {[%clk 0:00:55.7]} 32... h5 {[%clk 0:00:47.7]} 33.
e6+ {[%clk 0:00:33.2]} 33... Kh7 {[%clk 0:00:43.9]} 34. Qc3 {[%clk 0:00:24.2]}
34... Bh6 {[%clk 0:00:27.9]} 35. Bb1 {[%clk 0:00:23.5]} 35... Qd6 {[%clk
0:00:24.1]} 36. Qf6 {[%clk 0:00:19.2]} 36... Qxg3+ {[%clk 0:00:23.7]} 37. Kf1
{[%clk 0:00:18.7]} 37... Qh3+ {[%clk 0:00:18.9]} 38. Ke2 {[%clk 0:00:17.3]}
38... Qe3+ {[%clk 0:00:18.8]} 39. Kf1 {[%clk 0:00:16.5]} 39... Qc1+ {[%clk
0:00:18.2]} 40. Kg2 {[%clk 0:00:16.7]} 40... Qxb1 {[%clk 0:00:18.4]} 41. Qf7+
{[%clk 0:00:16.8]} 41... Bg7 {[%clk 0:00:17.8]} 42. e7 {[%clk 0:00:17.1]} 42...
Qxb2+ {[%clk 0:00:18.3]} 43. Kf3 {[%clk 0:00:17.1]} 43... Qxa3+ {[%clk
0:00:18.1]} 44. Kf2 {[%clk 0:00:16.2]} 44... Qb2+ {[%clk 0:00:17.9]} 45. Kf3
{[%clk 0:00:16.5]} 45... Qc3+ {[%clk 0:00:18.2]} 46. Kf2 {[%clk 0:00:16.8]}
46... Qd2+ {[%clk 0:00:18.4]} 47. Kf3 {[%clk 0:00:17.3]} 47... Qd3+ {[%clk
0:00:17.4]} 48. Kf2 {[%clk 0:00:17.7]} 48... Qd4+ {[%clk 0:00:17.7]} 49. Kf3
{[%clk 0:00:16.8]} 49... Qc3+ {[%clk 0:00:14.5]} 50. Kf2 {[%clk 0:00:17]} 50...
Qd2+ {[%clk 0:00:12.8]} 51. Kf3 {[%clk 0:00:17.4]} 51... Qd1+ {[%clk 0:00:13.3]}
52. Kf2 {[%clk 0:00:17.1]} 52... Qd2+ {[%clk 0:00:11]} 1/2-1/2